Cogmind - Beta 16 @@@ ROGUE MODE // 2026.01.16 @ 09:33:23 Player: polar Result: Destroyed by QR-PLG(R) with Subdweller Beam Cannon Performance ------------- Evolutions (0) 0 Regions Visited (3) 600 Robots Destroyed (21) 105 Value Destroyed (506) 506 Prototype IDs (12) 240 Alien Tech Used (0) 0 Bonus (0) 0 TOTAL SCORE: 1451 Bonus ------- None Cogmind --------- Core Integrity 0/250 Matter 145/300 Energy 170/170 System Corruption 0% Temperature Warm (178) Movement Rolling (130) Ox2 Location -10/Subcaves Parts ------- > --- POWER (1) -------- Makeshift Power Source > --- PROPULSION (2) --- Subdweller Monowheel Subdweller Monowheel > --- UTILITY (2) ------ Huge Storage Unit Subdweller Optics > --- WEAPON (2) ------- Flamer > --- INVENTORY (25) --- Subdweller Power Source Subdweller Power Source Subdweller Power Source Subdweller Power Source Makeshift Leg Subdweller Monowheel Subdweller Monowheel Disposable Heat Sink High-capacity Matter Pod (200) Subdweller Optics Subdweller Optics Subdweller Optics Seismic Detector Scrap Shield Cobbler Unit Rainbow Chip Subdweller Beam Cannon Battle Rifle Multitool Peak State ------------ > --- POWER ------------ Makeshift Power Source > --- PROPULSION ------- Light Treads Subdweller Monowheel > --- UTILITY ---------- Huge Storage Unit Subdweller Optics > --- WEAPON ----------- Heavy Battle Rifle Battle Cannon > --- INVENTORY -------- Subdweller Power Source Subdweller Power Source Subdweller Power Source Subdweller Power Source Light Treads Makeshift Leg Subdweller Monowheel Subdweller Monowheel Subdweller Monowheel Disposable Heat Sink High-capacity Matter Pod Subdweller Optics Subdweller Optics Subdweller Optics Seismic Detector Scrap Shield Cobbler Unit Rainbow Chip Subdweller Beam Cannon Battle Rifle Multitool Flamer Flamer [Rating: 22] Favorites ----------- Power Makeshift Power Source Engine Makeshift Power Source Propulsion Light Treads Treads Light Treads Wheel Subdweller Monowheel Utility Huge Storage Unit Device Seismic Detector Storage Huge Storage Unit Processor Visual Processing Unit Hackware Hacking Suite Protection Makeshift Light Armor Plating Weapon Light Cannon Energy Gun Riot Gun Energy Cannon Subdweller Beam Cannon Ballistic Gun Heavy Battle Rifle Ballistic Cannon Light Cannon Special Weapon Flamer Impact Weapon Makeshift Hammer Special Melee Weapon Improved Datajack Build | -11 -10 -10 -10 ------- Run | Yrd Mat Min Sub Slots Evolved . | . . . . Power . | . . . . Propulsion . | . . . . Utility . | . . . . Weapon . | . . . . Parts Attached 34 | 5 2 4 23 Power 2 | . . . 2 Engine 2 | . . . 2 Core . | . . . . Reactor . | . . . . Propulsion 8 | 2 1 . 5 Treads 2 | . 1 . 1 Leg . | . . . . Wheel 6 | 2 . . 4 Hover . | . . . . Flight . | . . . . Utility 8 | 1 1 1 5 Device 4 | 1 . . 3 Storage 1 | . . . 1 Processor 1 | . 1 . . Hackware 1 | . . 1 . Protection 1 | . . . 1 Artifact . | . . . . Weapon 16 | 2 . 3 11 Energy Gun 2 | 1 . . 1 Energy Cannon 1 | . . . 1 Ballistic Gun 5 | 1 . . 4 Ballistic Cannon 3 | . . 2 1 Launcher . | . . . . Special Weapon 3 | . . . 3 Impact Weapon 1 | . . . 1 Slashing Weapon . | . . . . Piercing Weapon . | . . . . Special Melee Weapon 1 | . . 1 . Unidentified Prototypes . | . . . . Parts Lost 12 | . . . 12 Power 1 | . . . 1 Propulsion 4 | . . . 4 Utility . | . . . . Weapon 7 | . . . 7 Highest Loss Streak 5 | . . . 5 To Critical Strikes . | . . . . Average Backups 15 | 1 4 5 17 Power 2 | . . . 2 Propulsion 3 | 1 2 2 3 Utility 5 | . . 1 6 Weapon 3 | . 1 1 3 Tool/Special . | . . . . Unused Backups 15 | . . . 15 Power 4 | . . . 4 Propulsion 1 | . . . 1 Utility 8 | . . . 8 Weapon 1 | . . . 1 Tool/Special 1 | . . . 1 Average Slot Usage (%) 92 | . 66 79 95 Engine 8 | . . . 10 Treads 13 | . 1 . 15 Wheel 14 | . 26 28 12 Device 13 | . 14 14 13 Storage 11 | . . . 13 Hackware 1 | . . 11 . Energy Gun 4 | . 14 6 3 Energy Cannon 5 | . . . 6 Ballistic Gun 3 | . 1 . 4 Ballistic Cannon 11 | . . 16 11 Special Weapon 1 | . . . 1 Peak Build Rating 22 | 5 6 9 22 Average Rating 13 | 3 5 7 15 On Entrance 4 | . 4 6 8 Avg Prop Armor Cover (%) 13 | 18 18 16 12 Naked Turns . | . . . . Heaviest Build 98 | 3 3 7 98 Greatest Support 40 | 3 10 3 40 Greatest Overweight (x) 4 | . . 2 4 Average Overweight (x) 2 | . . . 3 Largest Inventory Capacity 25 | 5 5 5 25 Average Capacity 21 | 5 5 5 24 Most Carried 25 | 4 5 5 25 Average Carried 16 | 1 4 4 19 Final Capacity 25 | 5 5 5 25 Final Carried 21 | 4 5 5 21 Class Distribution -------------------- 66% | Mutant 33% | Scavenger-Mutant Dominant Class ---------------- Mutant | -10/Materials Mutant | -10/Mines Mutant | -10/Subcaves Resources | -11 -10 -10 -10 ----------- Run | Yrd Mat Min Sub Matter Collected 991 | 257 45 32 657 Remotely . | . . . . Salvage Created 574 | 91 60 . 423 Parts 35 | 5 7 . 23 Haulers Intercepted . | . . . . Recyclers Shooed . | . . . . Parts Field Recycled . | . . . . Retrieved Matter . | . . . . Parts Self-Destructed 12 | . . . 12 Prevented . | . . . . Parts Restored . | . . . . Kills | -11 -10 -10 -10 ------- Run | Yrd Mat Min Sub Combat Hostiles Destroyed 17 | . 3 . 14 Guns 6 | . 3 . 3 Cannons 9 | . . . 9 Classes Destroyed 6 | 2 2 . 2 Tunneler 2 | 2 . . . Recycler 1 | 1 . . . Watcher 1 | . 1 . . Swarmer 7 | . 3 . 4 Cobbler 1 | . . . 1 Subdweller 10 | . . . 10 Best Kill Streak 4 | 3 4 . 4 Combat Bots Only 4 | . 3 . 4 Max Kills in Single Turn 2 | 1 1 . 2 Gunslinging . | . . . . Exploded . | . . . . Melee . | . . . . Uniques/NPCs Destroyed . | . . . . Combat | -11 -10 -10 -10 -------- Run | Yrd Mat Min Sub Hostile Shots Fired 100 | . 8 . 92 Missed 29 | . 3 . 26 Hits 71 | . 5 . 66 Projectile 71 | . 5 . 66 Critical Strikes 2 | . . . 2 Damage Taken 1294 | . 43 . 1251 Core 262 | . 10 . 252 Absorbed by Shields . | . . . . Core Remaining (%) 100 | 100 . . . Volleys Fired 92 | 7 6 . 79 Largest 2 | 2 2 . 2 Hottest 200 | 70 70 . 200 Shots Fired 149 | 14 11 . 124 Gun 47 | 14 11 . 22 Cannon 94 | . . . 94 Launcher . | . . . . Special 8 | . . . 8 Kinetic 93 | 7 5 . 81 Thermal 47 | 7 6 . 34 Explosive . | . . . . Electromagnetic 9 | . . . 9 Robot Hit Streak 17 | 5 5 . 17 Robot Miss Streak 5 | 1 1 . 5 Penetration Max . | . . . . Secondary Targets . | . . . . Shots Hit Robots 93 | 10 8 . 75 Core Hits 35 | 5 5 . 25 Critical Kills 1 | . . . 1 Critical Parts Destroyed . | . . . . Critical Strikes 4 | 1 . . 3 Burn 1 | 1 . . . Meltdown 1 | . . . 1 Blast 2 | . . . 2 Melee Attacks 9 | . . . 9 Impact 9 | . . . 9 Slashing . | . . . . Piercing . | . . . . Sneak Attacks . | . . . . Combat Hostiles . | . . . . Follow-up Attacks . | . . . . Damage Inflicted 1621 | 100 89 . 1432 Guns 528 | 100 89 . 339 Cannons 1024 | . . . 1024 Explosions . | . . . . Melee 47 | . . . 47 Ramming . | . . . . Kinetic 966 | 39 25 . 902 Thermal 492 | 61 64 . 367 Explosive . | . . . . Electromagnetic 116 | . . . 116 Impact 47 | . . . 47 Slashing . | . . . . Piercing . | . . . . Highest Corruption . | . . . . Average Corruption . | . . . . Corruption Purged . | . . . . Corruption Blocked . | . . . . Overload Shots . | . . . . Overflow Damage . | . . . . Projectiles . | . . . . Explosions . | . . . . Melee . | . . . . Knockbacks 5 | . . . 5 Impact . | . . . . Kinetic 5 | . . . 5 Secondary . | . . . . Self-Inflicted Damage . | . . . . Shots . | . . . . Rammed . | . . . . Targets Rammed . | . . . . Kicked . | . . . . Crushed . | . . . . Highest Temperature 235 | 40 40 . 235 Average Temperature 44 | 21 20 . 55 Received Heat Transfer 556 | . . . 556 Siege Activations . | . . . . Martial Activations . | . . . . Shielding Activations . | . . . . Robots Disrupted . | . . . . Combat Hostiles . | . . . . Robots Corrupted . | . . . . Combat Hostiles . | . . . . Parts Fried 1 | . . . 1 Impact Corruptions . | . . . . Robots Melted 2 | . . . 2 Combat Hostiles 2 | . . . 2 Parts Melted 5 | 1 1 . 3 Heat Transferred 1085 | 259 185 . 641 Parts Sabotaged . | . . . . Parts Stolen . | . . . . Parts Stripped . | . . . . Power Chain Reactions . | . . . . Alert | -11 -10 -10 -10 ------- Run | Yrd Mat Min Sub Maximum Alert Level . | . . . . Low Security (%) 100 | 100 100 100 . Level 1 . | . . . . Level 2 . | . . . . Level 3 . | . . . . Level 4 . | . . . . Level 5 . | . . . . High Security . | . . . . Max Security . | . . . . Peak Influence 85 | 10 85 13 . Initial 13 | . . 13 . Average 17 | 2 40 1 . Influence Increases 235 | 15 95 . 125 Destroy 0b10 Robot/C 140 | . 60 . 80 Destroy 0b10 Robot/NC 20 | 15 5 . . Destroy Leader 12 | . 12 . . Successful Hack 3 | . 3 . . Lose Combat Pursuer 60 | . 15 . 45 Influence Decreases 235 | 15 60 35 125 Entered New Map 22 | . . 22 . Time Decay 203 | 15 60 13 115 Lost Part 10 | . . . 10 Squads Dispatched 3 | . 2 1 . Investigation 2 | . 1 1 . Extermination . | . . . . Reinforcement 1 | . 1 . . Assault . | . . . . Garrison . | . . . . Intercept . | . . . . Searches Triggered . | . . . . Construction Impeded . | . . . . Haulers Reinforced . | . . . . Active Scanning Responses . | . . . . Cargo Convoy Interrupts . | . . . . Stealth | -11 -10 -10 -10 --------- Run | Yrd Mat Min Sub Distress Signals 2 | . 2 . . Communications Jammed . | . . . . Distress Signals . | . . . . Times Spotted 27 | . 10 . 17 Peak Tracking Total 6 | . 5 . 6 Tactical Retreats 3 | . 1 . 2 Traps | -11 -10 -10 -10 ------- Run | Yrd Mat Min Sub Traps Triggered 1 | . 1 . . Indirectly . | . . . . Trap Hack Attempts . | . . . . Triggered . | . . . . Disarmed . | . . . . Reprogrammed . | . . . . Reused . | . . . . Traps Extracted . | . . . . Installed . | . . . . Triggered . | . . . . Machines | -11 -10 -10 -10 ---------- Run | Yrd Mat Min Sub Machines Disabled 1 | . . . 1 Max in Single Turn 1 | . . . 1 Machines Repaired . | . . . . Machines Dismantled . | . . . . Machines Sabotaged . | . . . . Overloaded Fab Kills . | . . . . Hacking | -11 -10 -10 -10 --------- Run | Yrd Mat Min Sub Machines Accessed 5 | . 3 1 1 Terminals 2 | . 2 . . Fabricators . | . . . . Repair Stations . | . . . . Recycling Units 1 | . 1 . . Scanalyzers . | . . . . Garrison Access . | . . . . Total Hacks 8 | . 6 1 1 Successful 6 | . 4 1 1 Failed 2 | . 2 . . Catastrophic 1 | . 1 . . Database Lockouts . | . . . . Manual 5 | . 5 . . Terminals 5 | . 5 . . Fabricators . | . . . . Repair Stations . | . . . . Recycling Units 1 | . 1 . . Scanalyzers . | . . . . Garrison Access . | . . . . Terminal Hacks 2 | . . 1 1 Open Door 1 | . . 1 . Proto ID Catalog 1 | . . . 1 Fabricator Hacks . | . . . . Repair Station Hacks . | . . . . Recycling Unit Hacks 1 | . 1 . . Retrieve Components 1 | . 1 . . Scanalyzer . | . . . . Garrison Access Hacks . | . . . . Unauthorized Hacks 3 | . 3 . . Terminals 3 | . 3 . . Botnet 1 | . 1 . . Skim 2 | . 2 . . Fabricators . | . . . . Repair Stations . | . . . . Recycling Units . | . . . . Scanalyzers . | . . . . Garrison Access . | . . . . Data Cores Recovered . | . . . . Used . | . . . . Hacking Detections 3 | . 3 . . Full Trace Events 1 | . 1 . . Feedback Events . | . . . . Feedback Blocked . | . . . . Robot Schematics Acquired . | . . . . Robots Built . | . . . . Authchips . | . . . . Time . | . . . . Total Robot Build Rating . | . . . . Part Schematics Acquired . | . . . . Parts Built . | . . . . Authchips . | . . . . Time . | . . . . Total Part Build Rating . | . . . . Part Studies Acquired . | . . . . Parts Repaired . | . . . . Time . | . . . . Parts Recycled . | . . . . Recycled Matter . | . . . . Retrieved Matter . | . . . . Retrieved Components 1 | . 1 . . Parts Scanalyzed . | . . . . Part Schematics Acquired . | . . . . Parts Damaged . | . . . . Bothacking | -11 -10 -10 -10 ------------ Run | Yrd Mat Min Sub Used RIF Installer . | . . . . Robots Hacked . | . . . . Non-combat . | . . . . Combat . | . . . . Robot Hacks Applied . | . . . . Relay Couplers Released . | . . . . Fabnet Peak Effective % . | . . . . Robots Rewired . | . . . . Allies Hacked . | . . . . Hacks Repelled . | . . . . Allies | -11 -10 -10 -10 -------- Run | Yrd Mat Min Sub Total Allies . | . . . . Largest Group . | . . . . Highest-Rated Group . | . . . . Highest-Rated Ally . | . . . . Total Orders . | . . . . Ally Attacks . | . . . . Total Damage . | . . . . Kills . | . . . . Allies Corrupted . | . . . . Allies Melted . | . . . . Intel | -11 -10 -10 -10 ------- Run | Yrd Mat Min Sub Active Infowar (turns) 2617 | 3 169 198 2247 Optics 1406 | . 102 36 1268 Seismic 1349 | 3 169 198 979 Robot Analysis Total . | . . . . Derelict Logs Recovered 3 | . . 1 2 Drone Launches . | . . . . Drone Recoveries . | . . . . Exploration | -11 -10 -10 -10 ------------- Run | Yrd Mat Min Sub Turns Passed 2689 | 62 169 198 2260 Spaces Moved 1726 | 55 286 218 1167 Core 548 | 55 275 218 . Treads 56 | . . . 56 Legs . | . . . . Wheels 1122 | . 11 . 1111 Hover . | . . . . Flight . | . . . . Fastest Speed 50 | 50 50 50 90 Average Speed 126 | 50 51 83 157 Slowest Speed 320 | 50 80 150 320 Overloaded Moves . | . . . . Propulsion Burnouts . | . . . . Robots Hopped . | . . . . Potential Cave-ins . | . . . . Cave-ins Triggered . | . . . . Exploration Rate (%) 38 | 3 48 51 52 Regions Visited 3 Branch Regions 2 Pre-discovered Areas 1 | . . 1 . Known Exits Taken . | . . . . Unknown Exits Taken 3 | 1 1 1 . Scrap Searched 7 | . . 1 6 Spaces Dug . | . . . . Terrain Destroyed 1 | . . . 1 Melee . | . . . . Projectile 1 | . . . 1 AOE . | . . . . Terrain Rammed . | . . . . Walls Destroyed . | . . . . Machines Disabled . | . . . . Actions | -11 -10 -10 -10 --------- Run | Yrd Mat Min Sub Total 2051 | 75 297 233 1446 Wait 128 | 3 . 7 118 Move 1723 | 54 285 217 1167 Hop . | . . . . Pick Up 40 | 5 1 2 32 Fast Attach 10 | 3 1 2 4 Attach 16 | 2 1 . 13 Detach 2 | 1 1 . . Swap 19 | . 2 2 15 Drop 12 | . . 3 9 Fire 92 | 7 6 . 79 Melee 9 | . . . 9 Ram . | . . . . Kick . | . . . . Crush . | . . . . Escape Stasis . | . . . . Rewire . | . . . . Trap . | . . . . Miscellaneous . | . . . . Route ------- -11/Scrapyard -10/Materials -10/Mines -10/Subcaves (discovered 3 exits: [*Mat x2] / [*Rec]) History --------- Turn | Location | Event 9 | -11/Scrapyard | Discovered new exit (range 15) 63 | -11/Scrapyard | Entered Materials 159 | -10/Materials | Discovered new exit (range 13) 232 | -10/Materials | Entered Mines 233 | -10/Mines | Assembled infested the area 262 | -10/Mines | Met a Derelict shopkeep closing up shop 263 | -10/Mines | Learned location of Mines (-8) 308 | -10/Mines | Build established: Mutant 422 | -10/Mines | Discovered new exit (range 6) 430 | -10/Mines | Entered Subcaves 435 | -10/Subcaves | Ambushed by Subdwellers from Twisted Machinery 739 | -10/Subcaves | Learned Materials interactive machine intel 760 | -10/Subcaves | Learned Materials terminal intel 928 | -10/Subcaves | A swath of the cavern ceiling suddenly collapsed 957 | -10/Subcaves | Discovered new exit (range 3) 983 | -10/Subcaves | Discovered new exit (range 5) 1360 | -10/Subcaves | Build established: Scavenger-Mutant 1439 | -10/Subcaves | Discovered new exit (range 21) 2176 | -10/Subcaves | Shifting Twisted Machinery released Sub. Power Source 2188 | -10/Subcaves | Shifting Twisted Machinery released Riot Gun 2247 | -10/Subcaves | Build established: Mutant 2426 | -10/Subcaves | Visited 4L-MR0's lab 2446 | -10/Subcaves | Found Rainbow Chip 2608 | -10/Subcaves | Core integrity fell below 50% 2682 | -10/Subcaves | Core integrity fell below 20% 2690 | -10/Subcaves | Destroyed by QR-PLG(R) with Subdweller Beam Cannon Last Messages --------------- Powered Cannon 02439_ Testing Chamber breached. 02441_ Dropped Broken Sub. Optics. 02441_ Dropped Disposable Heat Sink. 02442_ 4L-MR0 mumbles to no one in particular: "Damn Subs sneaking around stealing my stuff." 02446_ Acquired Rainbow Chip. 02450_ Acquired Broken Sub. Optics. 02558_ Acquired 5 matter. 02610_ 5G-8H9(R) destroyed. 02616_ Acquired 15 matter. 02619_ Acquired 19 matter. 02656_ 7V-KQB(R) knocked back. 02659_ Battle Cannon destroyed. 02660_ 7V-KQB(R) destroyed. 02661_ Lgt. Treads destroyed. 02665_ Hvy. Battle Rifle destroyed. 02681_ Flamer destroyed. 02681_ Lgt. Treads destroyed. 02687_ Critical hit (Meltdown: +250). Map ----- +----------------------------------------------------+ | ???????????????????????????" ??## ### | | ??????????????????????????" ######?????# #?## | | ??????????????????????????? ???????????????# ##??# | | ???????????????????????????????????????????##????? | | ?????????????????????????????????????????????????? | | ?????????????????????????????????????????????????? | | ?????????????????????????????????????????????????? | | ?????????????????????????????????????????????????? | | ?????????????????????????????????????????????????? | | ?????????????????????????????????????????????????? | | ?????????????????????????????????????????????????? | | ?????????????????????????????????????????????????? | | ???? ????????????????????????????????????????????? | | ????""???????????????????????????????????????????? | | ???? "??????????????????????????????????????????? | | ???? ??????????????????????????##???????????????? | | ??? """???????????????????????## ##??????????????? | | ??? ""???????#????????###? # #??????????????? | | ??? ???????#""?????? ? % #??????????????? | | ??# ""????????? ""?????# #? #???????????????? | | ## "???????""" "" #???# ## % #????????????????? | | #???????"" "" ?## # #????????????????? | | #????????# "" # # #????????????????? | | # #???????????? "" % # #??????####??????# | | ##???######???????" # # #????### "######? | | ##?## #?????????##;@ # #?????#"" " ## "### | | "### #?????????# ;# #????##" !%"## %"## | | " ## #???????###;;#! #????#""|&!"## |[## | | ##?##?### R*%% ##????# " &%"## "# | | ## #?#! " """ #?????#" #### ## | | #?# " """"" #?????# "##?# #" | | ## #?# # "### #????# ###??# | | ##### ##?# "##### #????# #????#% | | ##???## #### #??#"" #??# ##????# #??### #" | | ##?????###### ##### ##??# ###?????#" ##?#% ###" | | #??????## %"## # "#?### ##??????#" ###"" "## | | ??????## ## ##?# "####???##" %#$"## | | ??????# ## ## #?## [ ##???##"" " ## "## | | ??????# ##% ######??## #????#######?### | | #?????# ### ## ##???## #??????????????## | | ####??#" && ## #????### *##???????????????# | | ####"" ## #?????# "#????????????????# | | ###"& #" ##????# "##???????????????# | | ### ##"" ##???## ""#???????????????# | | #?### ###""" ##???# ""#####???####????# | | ##??#### ##?#" ##??# ### ##?## ##???# | | ##????######### ##?# ## ### ###?# | | ??????###"#### ### ## ### | | ??????##" " " # ## | | ???????## " " """"# # | +----------------------------------------------------+ Best States ------------- Heat Dissipation 25 Energy Generation 15 Energy Capacity 250 Matter Stores 300 Matter Capacity 300 Sight Range 21 Terrain Scan Density 10 Evasion (%) 50 Recoil Reduction 2 Offensive Hacking 10 Item Schematics ----------------- None Robot Schematics ------------------ None Fabricated ------------ Nothing Repaired ---------- Nothing Studied --------- None Alien Tech Used ----------------- None Achievements -------------- Art Critic Challenges ------------ None Game ------ Seed ExperimentalSystemBotcube Manual? 0 Play Time 00:40:41 Cumulative 42.6 hours Start 2026.01.16 @ 09:00:07 End 2026.01.16 @ 09:33:23 Sessions 1 Manual Loads 0 Difficulty Rogue Special Mode None Game No. 7 Rogue 7 Adventurer 0 Explorer 0 Win Type - Total 1 Types 0/0/0/0/1/0/0/0/0/0 Lore% 34 Gallery% 39 Achievement% 43 Wizard Run 0 Options --------- Layout 1 ASCII 0 Keyboard 1 Movement Numpad Keybinds 0 Fullscreen 1 Font 24/Smallcaps Map View 50x35 Zoom Use 0% Tactical HUD 1 Map Filters NONE Filters NONE Steam 1 RUN: 4d3dfa69-599c-4593-83b1-224f7ae3dde6